[Event "Titled Tuesday Blitz May 2 Late 2023"]
[White "D`Arruda, Ricardo D."]
[Black "Bryant, John Daniel"]
[WhiteFideId "100692"]
[BlackFideId "2031280"]
[WhiteElo "2271"]
[BlackElo "2455"]
[Result "0-1"]
[Round "01"]
[TimeControl "180+2"]
[Date "2023.05.02"]
[WhiteClock "0:00:00"]
[BlackClock "0:00:00"]

1. d4 {[%clk 0:00:01]}  Nf6 {[%clk 0:00:01]} 2. Nf3 {[%clk 0:00:01]}  d5 {[%clk 0:00:01]} 3. c4 {[%clk 0:00:01]}  e6 {[%clk 0:00:01]} 4. Nc3 {[%clk 0:00:01]}  Be7 {[%clk 0:00:01]} 5. e3 {[%clk 0:00:01]}  O-O {[%clk 0:00:01]} 6. Bd3 {[%clk 0:00:01]}  dxc4 {[%clk 0:00:01]} 7. Bxc4 {[%clk 0:00:01]}  c5 {[%clk 0:00:01]} 8. O-O {[%clk 0:00:01]}  cxd4 {[%clk 0:00:01]} 9. exd4 {[%clk 0:00:01]}  Nc6 {[%clk 0:00:01]} 10. Be3 {[%clk 0:00:01]}  b6 {[%clk 0:00:01]} 11. Qe2 {[%clk 0:00:01]}  Bb7 {[%clk 0:00:01]} 12. Rfd1 {[%clk 0:00:01]}  Nb4 {[%clk 0:00:01]} 13. Ne5 {[%clk 0:00:01]}  Nbd5 {[%clk 0:00:01]} 14. Rac1 {[%clk 0:00:01]}  Nxc3 {[%clk 0:00:00]} 15. bxc3 {[%clk 0:00:01]}  Nd5 {[%clk 0:00:00]} 16. Bd2 {[%clk 0:00:01]}  Rc8 {[%clk 0:00:00]} 17. Bb3 {[%clk 0:00:01]}  Bg5 {[%clk 0:00:00]} 18. c4 {[%clk 0:00:01]}  Nf4 {[%clk 0:00:00]} 19. Qg4 {[%clk 0:00:01]}  h5 {[%clk 0:00:00]} 20. Qxf4 {[%clk 0:00:00]}  Bxf4 {[%clk 0:00:00]} 21. Bxf4 {[%clk 0:00:00]}  Qf6 {[%clk 0:00:00]} 22. Be3 {[%clk 0:00:00]}  Rfd8 {[%clk 0:00:00]} 23. f4 {[%clk 0:00:00]}  Qf5 {[%clk 0:00:00]} 24. d5 {[%clk 0:00:00]}  exd5 {[%clk 0:00:00]} 25. cxd5 {[%clk 0:00:00]}  Rxc1 {[%clk 0:00:00]} 26. Bxc1 {[%clk 0:00:00]}  Qe4 {[%clk 0:00:00]} 27. Nf3 {[%clk 0:00:00]}  Rc8 {[%clk 0:00:00]} 28. Re1 {[%clk 0:00:00]}  Qd3 {[%clk 0:00:00]} 29. Ne5 {[%clk 0:00:00]}  Qc3 {[%clk 0:00:00]} 30. Kf2 {[%clk 0:00:00]}  Bxd5 {[%clk 0:00:00]} 31. Re3 {[%clk 0:00:00]}  Qxc1 {[%clk 0:00:00]} 32. Bxd5 {[%clk 0:00:00]}  Qd2+ {[%clk 0:00:00]} 0-1


[Site "https://www.chess.com"]

[Event "Titled Tuesday Blitz May 2 Late 2023"]
[White "Debray, Christopher"]
[Black "Yanchenko, Roman"]
[WhiteFideId "630810"]
[BlackFideId "4137329"]
[WhiteElo "2340"]
[BlackElo "2491"]
[Result "0-1"]
[Round "01"]
[TimeControl "180+2"]
[Date "2023.05.02"]
[WhiteClock "0:00:00"]
[BlackClock "0:00:00"]

1. d4 {[%clk 0:00:01]}  d5 {[%clk 0:00:01]} 2. c4 {[%clk 0:00:01]}  c6 {[%clk 0:00:01]} 3. Nc3 {[%clk 0:00:01]}  Nf6 {[%clk 0:00:01]} 4. Nf3 {[%clk 0:00:01]}  g6 {[%clk 0:00:01]} 5. Bf4 {[%clk 0:00:01]}  Bg7 {[%clk 0:00:01]} 6. e3 {[%clk 0:00:01]}  O-O {[%clk 0:00:01]} 7. h3 {[%clk 0:00:01]}  a6 {[%clk 0:00:01]} 8. cxd5 {[%clk 0:00:01]}  cxd5 {[%clk 0:00:01]} 9. Bd3 {[%clk 0:00:01]}  Nc6 {[%clk 0:00:01]} 10. Rc1 {[%clk 0:00:01]}  Qb6 {[%clk 0:00:01]} 11. Qe2 {[%clk 0:00:01]}  Bf5 {[%clk 0:00:01]} 12. Bxf5 {[%clk 0:00:01]}  gxf5 {[%clk 0:00:01]} 13. O-O {[%clk 0:00:01]}  e6 {[%clk 0:00:01]} 14. Ne5 {[%clk 0:00:01]}  Rfc8 {[%clk 0:00:01]} 15. a3 {[%clk 0:00:01]}  Qb3 {[%clk 0:00:01]} 16. Qc2 {[%clk 0:00:01]}  Na5 {[%clk 0:00:01]} 17. Qe2 {[%clk 0:00:00]}  Nc4 {[%clk 0:00:01]} 18. Nxc4 {[%clk 0:00:00]}  Rxc4 {[%clk 0:00:01]} 19. Be5 {[%clk 0:00:00]}  Rac8 {[%clk 0:00:01]} 20. f3 {[%clk 0:00:00]}  b5 {[%clk 0:00:01]} 21. g4 {[%clk 0:00:00]}  fxg4 {[%clk 0:00:01]} 22. fxg4 {[%clk 0:00:00]}  Ne4 {[%clk 0:00:01]} 23. Bxg7 {[%clk 0:00:00]}  Rxc3 {[%clk 0:00:00]} 24. bxc3 {[%clk 0:00:00]}  Kxg7 {[%clk 0:00:00]} 25. Qf3 {[%clk 0:00:00]}  f6 {[%clk 0:00:00]} 26. Qf4 {[%clk 0:00:00]}  h6 {[%clk 0:00:00]} 27. h4 {[%clk 0:00:00]}  Rxc3 {[%clk 0:00:00]} 28. Rxc3 {[%clk 0:00:00]}  Qxc3 {[%clk 0:00:00]} 29. g5 {[%clk 0:00:00]}  hxg5 {[%clk 0:00:00]} 30. hxg5 {[%clk 0:00:00]}  f5 {[%clk 0:00:00]} 31. Qe5+ {[%clk 0:00:00]}  Kh7 {[%clk 0:00:00]} 32. Qxe6 {[%clk 0:00:00]}  Qxe3+ {[%clk 0:00:00]} 33. Kg2 {[%clk 0:00:00]}  Qxg5+ {[%clk 0:00:00]} 34. Kh1 {[%clk 0:00:00]}  Qh4+ {[%clk 0:00:00]} 35. Kg2 {[%clk 0:00:00]}  Qg4+ {[%clk 0:00:00]} 36. Kh1 {[%clk 0:00:00]}  Ng3+ {[%clk 0:00:00]} 37. Kg2 {[%clk 0:00:00]}  Nxf1+ {[%clk 0:00:00]} 38. Kxf1 {[%clk 0:00:00]}  Qf4+ {[%clk 0:00:00]} 39. Kg1 {[%clk 0:00:00]}  Qxd4+ {[%clk 0:00:00]} 40. Kf1 {[%clk 0:00:00]}  Qf4+ {[%clk 0:00:00]} 41. Kg1 {[%clk 0:00:00]}  Qe4 {[%clk 0:00:00]} 42. Qf7+ {[%clk 0:00:00]}  Kh6 {[%clk 0:00:00]} 43. Qxf5 {[%clk 0:00:00]}  Qxf5 {[%clk 0:00:00]} 0-1


[Site "https://www.chess.com"]

[Event "Titled Tuesday Blitz May 2 Late 2023"]
[White "Bueno, Alfeu Junior Varela"]
[Black "Papasimakopoulos, Alexandros"]
[WhiteFideId "2108879"]
[BlackFideId "4244125"]
[WhiteElo "2175"]
[BlackElo "2359"]
[Result "0-1"]
[Round "01"]
[TimeControl "180+2"]
[Date "2023.05.02"]
[WhiteClock "0:00:00"]
[BlackClock "0:00:00"]

1. e4 {[%clk 0:00:01]}  e6 {[%clk 0:00:01]} 2. d4 {[%clk 0:00:01]}  d5 {[%clk 0:00:01]} 3. Nd2 {[%clk 0:00:01]}  Nf6 {[%clk 0:00:01]} 4. Bd3 {[%clk 0:00:01]}  c5 {[%clk 0:00:01]} 5. e5 {[%clk 0:00:01]}  Nfd7 {[%clk 0:00:01]} 6. c3 {[%clk 0:00:01]}  b5 {[%clk 0:00:01]} 7. Bxb5 {[%clk 0:00:01]}  Qb6 {[%clk 0:00:01]} 8. Qa4 {[%clk 0:00:01]}  cxd4 {[%clk 0:00:01]} 9. cxd4 {[%clk 0:00:01]}  a6 {[%clk 0:00:01]} 10. Bd3 {[%clk 0:00:01]}  a5 {[%clk 0:00:01]} 11. Ne2 {[%clk 0:00:01]}  Ba6 {[%clk 0:00:01]} 12. Bxa6 {[%clk 0:00:01]}  Qxa6 {[%clk 0:00:01]} 13. Nc3 {[%clk 0:00:01]}  Nc6 {[%clk 0:00:01]} 14. Nf3 {[%clk 0:00:01]}  Nb4 {[%clk 0:00:01]} 15. Nb5 {[%clk 0:00:00]}  Qc6 {[%clk 0:00:01]} 16. O-O {[%clk 0:00:00]}  Rb8 {[%clk 0:00:01]} 17. Nc3 {[%clk 0:00:00]}  Qxa4 {[%clk 0:00:01]} 18. Nxa4 {[%clk 0:00:00]}  Be7 {[%clk 0:00:01]} 19. Bd2 {[%clk 0:00:00]}  O-O {[%clk 0:00:01]} 20. Rfc1 {[%clk 0:00:00]}  Rb7 {[%clk 0:00:01]} 21. Rc3 {[%clk 0:00:00]}  Nb6 {[%clk 0:00:01]} 22. Nxb6 {[%clk 0:00:00]}  Rxb6 {[%clk 0:00:01]} 23. a3 {[%clk 0:00:00]}  Na6 {[%clk 0:00:01]} 24. b3 {[%clk 0:00:00]}  h6 {[%clk 0:00:01]} 25. g3 {[%clk 0:00:00]}  Rfb8 {[%clk 0:00:01]} 26. Rac1 {[%clk 0:00:00]}  Rxb3 {[%clk 0:00:01]} 27. Rxb3 {[%clk 0:00:00]}  Rxb3 {[%clk 0:00:01]} 28. Kg2 {[%clk 0:00:00]}  Rxa3 {[%clk 0:00:01]} 29. Rc8+ {[%clk 0:00:00]}  Kh7 {[%clk 0:00:01]} 30. Ra8 {[%clk 0:00:00]}  Nb4 {[%clk 0:00:01]} 31. Ra7 {[%clk 0:00:00]}  Bf8 {[%clk 0:00:01]} 32. Rxf7 {[%clk 0:00:00]}  Kg8 {[%clk 0:00:01]} 33. Ra7 {[%clk 0:00:00]}  Ra4 {[%clk 0:00:00]} 34. Ra8 {[%clk 0:00:00]}  Nc6 {[%clk 0:00:00]} 35. Nh4 {[%clk 0:00:00]}  Kf7 {[%clk 0:00:00]} 36. Be3 {[%clk 0:00:00]}  g5 {[%clk 0:00:00]} 37. Nf3 {[%clk 0:00:00]}  Be7 {[%clk 0:00:00]} 38. Ra6 {[%clk 0:00:00]}  Nb4 {[%clk 0:00:00]} 39. Ra7 {[%clk 0:00:00]}  Ra2 {[%clk 0:00:00]} 40. Nd2 {[%clk 0:00:00]}  Nc2 {[%clk 0:00:00]} 41. Nb3 {[%clk 0:00:00]}  Nxe3+ {[%clk 0:00:00]} 42. Kf3 {[%clk 0:00:00]}  Nc4 {[%clk 0:00:00]} 43. Rxa5 {[%clk 0:00:00]}  Nxa5 {[%clk 0:00:00]} 0-1


[Site "https://www.chess.com"]

[Event "Titled Tuesday Blitz May 2 Late 2023"]
[White "Stearman, Josiah"]
[Black "Fernandez Siles, Luis"]
[WhiteFideId "2062496"]
[BlackFideId "2209420"]
[WhiteElo "2393"]
[BlackElo "2195"]
[Result "1-0"]
[Round "01"]
[TimeControl "180+2"]
[Date "2023.05.02"]
[WhiteClock "0:00:20"]
[BlackClock "0:00:03"]

1. e4 {[%clk 0:02:59]}  c5 {[%clk 0:02:59]} 2. Nc3 {[%clk 0:02:59]}  Nc6 {[%clk 0:02:58]} 3. g3 {[%clk 0:03:00]}  g6 {[%clk 0:02:58]} 4. Bg2 {[%clk 0:03:01]}  Bg7 {[%clk 0:02:58]} 5. d3 {[%clk 0:03:02]}  d6 {[%clk 0:02:58]} 6. Be3 {[%clk 0:03:02]}  Rb8 {[%clk 0:02:52]} 7. Qd2 {[%clk 0:03:02]}  Nd4 {[%clk 0:02:51]} 8. Nd1 {[%clk 0:03:02]}  b5 {[%clk 0:02:44]} 9. c3 {[%clk 0:03:02]}  Nc6 {[%clk 0:02:44]} 10. Ne2 {[%clk 0:03:03]}  a5 {[%clk 0:02:41]} 11. d4 {[%clk 0:02:57]}  cxd4 {[%clk 0:02:38]} 12. cxd4 {[%clk 0:02:57]}  e5 {[%clk 0:02:30]} 13. Rc1 {[%clk 0:02:55]}  Bb7 {[%clk 0:02:15]} 14. O-O {[%clk 0:02:54]}  Nf6 {[%clk 0:02:02]} 15. h3 {[%clk 0:02:48]}  O-O {[%clk 0:02:02]} 16. Ndc3 {[%clk 0:02:40]}  b4 {[%clk 0:01:59]} 17. Nd5 {[%clk 0:02:39]}  Nxd5 {[%clk 0:01:56]} 18. exd5 {[%clk 0:02:40]}  Nxd4 {[%clk 0:01:55]} 19. Nxd4 {[%clk 0:02:36]}  exd4 {[%clk 0:01:54]} 20. Bxd4 {[%clk 0:02:37]}  Re8 {[%clk 0:01:50]} 21. Bxg7 {[%clk 0:02:21]}  Kxg7 {[%clk 0:01:49]} 22. Qd4+ {[%clk 0:02:22]}  Qf6 {[%clk 0:01:44]} 23. Qa7 {[%clk 0:02:06]}  Qd8 {[%clk 0:01:27]} 24. Rfe1 {[%clk 0:01:53]}  Qg5 {[%clk 0:00:57]} 25. Qxa5 {[%clk 0:01:40]}  Qd2 {[%clk 0:00:44]} 26. Rf1 {[%clk 0:01:33]}  Qxb2 {[%clk 0:00:40]} 27. Rb1 {[%clk 0:01:26]}  Qa3 {[%clk 0:00:31]} 28. Qxb4 {[%clk 0:01:23]}  Qxa2 {[%clk 0:00:26]} 29. Qxd6 {[%clk 0:01:07]}  Rbd8 {[%clk 0:00:20]} 30. Qc5 {[%clk 0:00:41]}  Bxd5 {[%clk 0:00:20]} 31. Qc3+ {[%clk 0:00:34]}  Kg8 {[%clk 0:00:17]} 32. Bxd5 {[%clk 0:00:28]}  Qxd5 {[%clk 0:00:17]} 33. Rfe1 {[%clk 0:00:24]}  h5 {[%clk 0:00:15]} 34. Kh2 {[%clk 0:00:20]}  Rxe1 {[%clk 0:00:13]} 35. Rxe1 {[%clk 0:00:21]}  Qd2 {[%clk 0:00:10]} 36. Re8+ {[%clk 0:00:20]}  Rxe8 {[%clk 0:00:03]} 37. Qxd2 {[%clk 0:00:20]}  Re6 {[%clk 0:00:03]} 38. Qd8+ {[%clk 0:00:20]}  Kg7 {[%clk 0:00:03]} 39. h4 {[%clk 0:00:20]} 1-0


[Site "https://www.chess.com"]

[Event "Titled Tuesday Blitz May 2 Late 2023"]
[White "Guerra Tulcan, Lenin"]
[Black "Roux, Baptiste"]
[WhiteFideId "3601382"]
[BlackFideId "36017450"]
[WhiteElo "2368"]
[BlackElo "2077"]
[Result "0-1"]
[Round "01"]
[TimeControl "180+2"]
[Date "2023.05.02"]
[WhiteClock "0:00:00"]
[BlackClock "0:00:00"]

1. e4 {[%clk 0:00:01]}  c6 {[%clk 0:00:01]} 2. Nf3 {[%clk 0:00:01]}  d5 {[%clk 0:00:01]} 3. exd5 {[%clk 0:00:01]}  cxd5 {[%clk 0:00:01]} 4. Ne5 {[%clk 0:00:01]}  Nc6 {[%clk 0:00:01]} 5. Bb5 {[%clk 0:00:01]}  Qb6 {[%clk 0:00:01]} 6. Bxc6+ {[%clk 0:00:01]}  bxc6 {[%clk 0:00:01]} 7. O-O {[%clk 0:00:01]}  Nf6 {[%clk 0:00:01]} 8. Re1 {[%clk 0:00:01]}  Bf5 {[%clk 0:00:01]} 9. b3 {[%clk 0:00:01]}  e6 {[%clk 0:00:01]} 10. Bb2 {[%clk 0:00:01]}  Bd6 {[%clk 0:00:01]} 11. Nc3 {[%clk 0:00:01]}  O-O {[%clk 0:00:01]} 12. Na4 {[%clk 0:00:01]}  Qc7 {[%clk 0:00:01]} 13. d4 {[%clk 0:00:01]}  c5 {[%clk 0:00:01]} 14. dxc5 {[%clk 0:00:01]}  Bxc5 {[%clk 0:00:01]} 15. Nxc5 {[%clk 0:00:01]}  Qxc5 {[%clk 0:00:01]} 16. Bd4 {[%clk 0:00:01]}  Qxc2 {[%clk 0:00:01]} 17. Qf3 {[%clk 0:00:01]}  Ne4 {[%clk 0:00:01]} 18. Rec1 {[%clk 0:00:01]}  Qd2 {[%clk 0:00:01]} 19. Rd1 {[%clk 0:00:01]}  Qb4 {[%clk 0:00:00]} 20. Nc6 {[%clk 0:00:01]}  Qd6 {[%clk 0:00:00]} 21. Rac1 {[%clk 0:00:01]}  Rfc8 {[%clk 0:00:00]} 22. Nxa7 {[%clk 0:00:01]}  Rxc1 {[%clk 0:00:00]} 23. Rxc1 {[%clk 0:00:01]}  Qa6 {[%clk 0:00:00]} 24. a4 {[%clk 0:00:01]}  f6 {[%clk 0:00:00]} 25. Nb5 {[%clk 0:00:00]}  Rc8 {[%clk 0:00:00]} 26. Qd1 {[%clk 0:00:00]}  e5 {[%clk 0:00:00]} 27. Bb2 {[%clk 0:00:00]}  d4 {[%clk 0:00:00]} 28. f3 {[%clk 0:00:00]}  Nc5 {[%clk 0:00:00]} 29. Bxd4 {[%clk 0:00:00]}  exd4 {[%clk 0:00:00]} 30. Qxd4 {[%clk 0:00:00]}  Qe6 {[%clk 0:00:00]} 31. b4 {[%clk 0:00:00]}  Nd3 {[%clk 0:00:00]} 32. Rxc8+ {[%clk 0:00:00]}  Qxc8 {[%clk 0:00:00]} 33. Qd5+ {[%clk 0:00:00]}  Kh8 {[%clk 0:00:00]} 34. h3 {[%clk 0:00:00]}  Qc1+ {[%clk 0:00:00]} 35. Kh2 {[%clk 0:00:00]}  Qf4+ {[%clk 0:00:00]} 36. Kg1 {[%clk 0:00:00]}  Qe3+ {[%clk 0:00:00]} 37. Kh2 {[%clk 0:00:00]}  Qf4+ {[%clk 0:00:00]} 38. Kg1 {[%clk 0:00:00]}  h5 {[%clk 0:00:00]} 39. Nd4 {[%clk 0:00:00]}  Qe3+ {[%clk 0:00:00]} 40. Kh2 {[%clk 0:00:00]}  Qf4+ {[%clk 0:00:00]} 41. Kg1 {[%clk 0:00:00]}  Bg6 {[%clk 0:00:00]} 42. Ne6 {[%clk 0:00:00]}  Qe3+ {[%clk 0:00:00]} 43. Kh1 {[%clk 0:00:00]}  Nf4 {[%clk 0:00:00]} 44. Nxf4 {[%clk 0:00:00]}  Qxf4 {[%clk 0:00:00]} 45. b5 {[%clk 0:00:00]}  Qxa4 {[%clk 0:00:00]} 46. b6 {[%clk 0:00:00]}  Qa1+ {[%clk 0:00:00]} 47. Kh2 {[%clk 0:00:00]}  Qb2 {[%clk 0:00:00]} 48. b7 {[%clk 0:00:00]}  Kh7 {[%clk 0:00:00]} 49. Qd6 {[%clk 0:00:00]}  Qxb7 {[%clk 0:00:00]} 50. h4 {[%clk 0:00:00]}  Bf5 {[%clk 0:00:00]} 51. Qf4 {[%clk 0:00:00]}  Qd7 {[%clk 0:00:00]} 52. Kg1 {[%clk 0:00:00]}  Bg6 {[%clk 0:00:00]} 53. g3 {[%clk 0:00:00]}  Qd1+ {[%clk 0:00:00]} 54. Kg2 {[%clk 0:00:00]}  Qc2+ {[%clk 0:00:00]} 55. Kg1 {[%clk 0:00:00]}  Qf5 {[%clk 0:00:00]} 56. Qe3 {[%clk 0:00:00]}  Qd5 {[%clk 0:00:00]} 57. Kg2 {[%clk 0:00:00]}  Bc2 {[%clk 0:00:00]} 58. Kh2 {[%clk 0:00:00]}  Ba4 {[%clk 0:00:00]} 59. g4 {[%clk 0:00:00]}  Bc6 {[%clk 0:00:00]} 60. Kg3 {[%clk 0:00:00]}  hxg4 {[%clk 0:00:00]} 61. fxg4 {[%clk 0:00:00]}  Qg2+ {[%clk 0:00:00]} 62. Kf4 {[%clk 0:00:00]}  Qh2+ {[%clk 0:00:00]} 63. Kf5 {[%clk 0:00:00]}  Qxh4 {[%clk 0:00:00]} 64. g5 {[%clk 0:00:00]}  Qxg5+ {[%clk 0:00:00]} 65. Qxg5 {[%clk 0:00:00]}  fxg5 {[%clk 0:00:00]} 66. Kxg5 {[%clk 0:00:00]}  Bd7 {[%clk 0:00:00]} 67. Kh5 {[%clk 0:00:00]}  g6+ {[%clk 0:00:00]} 68. Kg5 {[%clk 0:00:00]}  Kg7 {[%clk 0:00:00]} 69. Kf4 {[%clk 0:00:00]}  Kf6 {[%clk 0:00:00]} 70. Kf3 {[%clk 0:00:00]}  g5 {[%clk 0:00:00]} 71. Kg3 {[%clk 0:00:00]}  Kf5 {[%clk 0:00:00]} 72. Kf2 {[%clk 0:00:00]}  g4 {[%clk 0:00:00]} 73. Kg2 {[%clk 0:00:00]}  Kf4 {[%clk 0:00:00]} 74. Kf2 {[%clk 0:00:00]}  g3+ {[%clk 0:00:00]} 75. Kg2 {[%clk 0:00:00]}  Bc6+ {[%clk 0:00:00]} 76. Kg1 {[%clk 0:00:00]}  Kf3 {[%clk 0:00:00]} 77. Kf1 {[%clk 0:00:00]}  g2+ {[%clk 0:00:00]} 78. Kg1 {[%clk 0:00:00]}  Bb7 {[%clk 0:00:00]} 79. Kh2 {[%clk 0:00:00]}  Kf2 {[%clk 0:00:00]} 80. Kh3 {[%clk 0:00:00]}  g1=Q {[%clk 0:00:00]} 81. Kh4 {[%clk 0:00:00]}  Qg6 {[%clk 0:00:00]} 82. Kh3 {[%clk 0:00:00]}  Qg3# {[%clk 0:00:00]} 0-1


[Site "https://www.chess.com"]

[Event "Titled Tuesday Blitz May 2 Late 2023"]
[White "Silva, Kaua Marques"]
[Black "Prohaszka, Peter"]
[WhiteFideId "22701168"]
[BlackFideId "726265"]
[WhiteElo "2159"]
[BlackElo "2626"]
[Result "0-1"]
[Round "01"]
[TimeControl "180+2"]
[Date "2023.05.02"]
[WhiteClock "0:00:00"]
[BlackClock "0:00:00"]

1. e4 {[%clk 0:00:01]}  c6 {[%clk 0:00:01]} 2. d4 {[%clk 0:00:01]}  d5 {[%clk 0:00:01]} 3. f3 {[%clk 0:00:01]}  e6 {[%clk 0:00:01]} 4. Nc3 {[%clk 0:00:01]}  Bb4 {[%clk 0:00:01]} 5. Be3 {[%clk 0:00:01]}  Ne7 {[%clk 0:00:01]} 6. Qd2 {[%clk 0:00:01]}  Nd7 {[%clk 0:00:01]} 7. O-O-O {[%clk 0:00:01]}  a5 {[%clk 0:00:01]} 8. h4 {[%clk 0:00:01]}  a4 {[%clk 0:00:01]} 9. a3 {[%clk 0:00:01]}  Ba5 {[%clk 0:00:01]} 10. h5 {[%clk 0:00:01]}  h6 {[%clk 0:00:01]} 11. g4 {[%clk 0:00:01]}  b5 {[%clk 0:00:01]} 12. Nge2 {[%clk 0:00:01]}  b4 {[%clk 0:00:01]} 13. axb4 {[%clk 0:00:01]}  Bxb4 {[%clk 0:00:01]} 14. Kb1 {[%clk 0:00:01]}  Qa5 {[%clk 0:00:01]} 15. Qc1 {[%clk 0:00:01]}  Nb6 {[%clk 0:00:01]} 16. Na2 {[%clk 0:00:01]}  Nc4 {[%clk 0:00:01]} 17. Ka1 {[%clk 0:00:01]}  Ba6 {[%clk 0:00:01]} 18. c3 {[%clk 0:00:01]}  Bd6 {[%clk 0:00:01]} 19. e5 {[%clk 0:00:01]}  Bc7 {[%clk 0:00:01]} 20. Nf4 {[%clk 0:00:01]}  Nc8 {[%clk 0:00:01]} 21. Bd3 {[%clk 0:00:00]}  Nxe3 {[%clk 0:00:01]} 22. Qxe3 {[%clk 0:00:00]}  Nb6 {[%clk 0:00:01]} 23. Bxa6 {[%clk 0:00:00]}  Qxa6 {[%clk 0:00:01]} 24. Nd3 {[%clk 0:00:00]}  Nc4 {[%clk 0:00:01]} 25. Qf2 {[%clk 0:00:00]}  Qb5 {[%clk 0:00:01]} 26. f4 {[%clk 0:00:00]}  Bd8 {[%clk 0:00:01]} 27. f5 {[%clk 0:00:00]}  Be7 {[%clk 0:00:01]} 28. f6 {[%clk 0:00:00]}  gxf6 {[%clk 0:00:01]} 29. exf6 {[%clk 0:00:00]}  Bd6 {[%clk 0:00:01]} 30. Nab4 {[%clk 0:00:00]}  Na5 {[%clk 0:00:01]} 31. Kb1 {[%clk 0:00:00]}  a3 {[%clk 0:00:01]} 32. bxa3 {[%clk 0:00:00]}  Nc4 {[%clk 0:00:01]} 33. Kc2 {[%clk 0:00:00]}  Qa4+ {[%clk 0:00:00]} 34. Kb1 {[%clk 0:00:00]}  Qb3+ {[%clk 0:00:00]} 35. Nb2 {[%clk 0:00:00]}  Rxa3 {[%clk 0:00:00]} 36. Qc2 {[%clk 0:00:00]}  Bxb4 {[%clk 0:00:00]} 37. cxb4 {[%clk 0:00:00]}  Ra1+ {[%clk 0:00:00]} 0-1


[Site "https://www.chess.com"]

[Event "Titled Tuesday Blitz May 2 Late 2023"]
[White "Jaracz, Pawel"]
[Black "Gatterer, Florian"]
[WhiteFideId "1102222"]
[BlackFideId "811688"]
[WhiteElo "2438"]
[BlackElo "2221"]
[Result "1-0"]
[Round "01"]
[TimeControl "180+2"]
[Date "2023.05.02"]
[WhiteClock "0:00:00"]
[BlackClock "0:00:00"]

1. d4 {[%clk 0:00:01]}  d5 {[%clk 0:00:01]} 2. c4 {[%clk 0:00:01]}  c6 {[%clk 0:00:01]} 3. Nf3 {[%clk 0:00:01]}  Nf6 {[%clk 0:00:01]} 4. Qc2 {[%clk 0:00:01]}  g6 {[%clk 0:00:01]} 5. Bf4 {[%clk 0:00:01]}  Bg7 {[%clk 0:00:01]} 6. e3 {[%clk 0:00:01]}  O-O {[%clk 0:00:01]} 7. Nc3 {[%clk 0:00:01]}  Bf5 {[%clk 0:00:01]} 8. Qb3 {[%clk 0:00:01]}  Qb6 {[%clk 0:00:01]} 9. c5 {[%clk 0:00:01]}  Qxb3 {[%clk 0:00:01]} 10. axb3 {[%clk 0:00:01]}  Nbd7 {[%clk 0:00:01]} 11. b4 {[%clk 0:00:01]}  a6 {[%clk 0:00:01]} 12. h3 {[%clk 0:00:01]}  Ne4 {[%clk 0:00:01]} 13. Be2 {[%clk 0:00:01]}  f6 {[%clk 0:00:01]} 14. g4 {[%clk 0:00:01]}  Nxc3 {[%clk 0:00:01]} 15. bxc3 {[%clk 0:00:01]}  Be4 {[%clk 0:00:01]} 16. O-O {[%clk 0:00:01]}  Bxf3 {[%clk 0:00:01]} 17. Bxf3 {[%clk 0:00:01]}  e5 {[%clk 0:00:01]} 18. Bg3 {[%clk 0:00:01]}  f5 {[%clk 0:00:01]} 19. Rfd1 {[%clk 0:00:01]}  f4 {[%clk 0:00:00]} 20. exf4 {[%clk 0:00:01]}  exf4 {[%clk 0:00:00]} 21. Bh2 {[%clk 0:00:01]}  g5 {[%clk 0:00:00]} 22. Be2 {[%clk 0:00:01]}  Nf6 {[%clk 0:00:00]} 23. f3 {[%clk 0:00:01]}  Rfe8 {[%clk 0:00:00]} 24. Kf1 {[%clk 0:00:01]}  Re3 {[%clk 0:00:00]} 25. Rac1 {[%clk 0:00:01]}  Rae8 {[%clk 0:00:00]} 26. Rc2 {[%clk 0:00:01]}  R3e7 {[%clk 0:00:00]} 27. Bg1 {[%clk 0:00:01]}  Kf7 {[%clk 0:00:00]} 28. Bd3 {[%clk 0:00:01]}  h6 {[%clk 0:00:00]} 29. Bf2 {[%clk 0:00:01]}  Rd8 {[%clk 0:00:00]} 30. Bf5 {[%clk 0:00:01]}  Ne4 {[%clk 0:00:00]} 31. fxe4 {[%clk 0:00:00]}  dxe4 {[%clk 0:00:00]} 32. Ke2 {[%clk 0:00:00]}  e3 {[%clk 0:00:00]} 33. Be1 {[%clk 0:00:00]}  Bf6 {[%clk 0:00:00]} 34. Kf3 {[%clk 0:00:00]}  Ree8 {[%clk 0:00:00]} 35. h4 {[%clk 0:00:00]}  Kg7 {[%clk 0:00:00]} 36. h5 {[%clk 0:00:00]}  Re7 {[%clk 0:00:00]} 37. Re2 {[%clk 0:00:00]}  Rde8 {[%clk 0:00:00]} 38. Bc2 {[%clk 0:00:00]}  Rd8 {[%clk 0:00:00]} 39. Bb3 {[%clk 0:00:00]}  Red7 {[%clk 0:00:00]} 40. Be6 {[%clk 0:00:00]}  Re7 {[%clk 0:00:00]} 41. Bf5 {[%clk 0:00:00]}  Ree8 {[%clk 0:00:00]} 42. Rc2 {[%clk 0:00:00]}  Re7 {[%clk 0:00:00]} 43. Ke2 {[%clk 0:00:00]}  Ree8 {[%clk 0:00:00]} 44. Rb2 {[%clk 0:00:00]}  Kf8 {[%clk 0:00:00]} 45. Rb3 {[%clk 0:00:00]}  Re7 {[%clk 0:00:00]} 46. d5 {[%clk 0:00:00]}  cxd5 {[%clk 0:00:00]} 47. c4 {[%clk 0:00:00]}  d4 {[%clk 0:00:00]} 48. Rbd3 {[%clk 0:00:00]}  Be5 {[%clk 0:00:00]} 49. b5 {[%clk 0:00:00]}  Rc7 {[%clk 0:00:00]} 50. Bb4 {[%clk 0:00:00]}  Kg7 {[%clk 0:00:00]} 51. Ba5 {[%clk 0:00:00]}  Rcc8 {[%clk 0:00:00]} 52. Bxc8 {[%clk 0:00:00]}  Rxc8 {[%clk 0:00:00]} 53. c6 {[%clk 0:00:00]}  bxc6 {[%clk 0:00:00]} 54. b6 {[%clk 0:00:00]}  c5 {[%clk 0:00:00]} 55. Kf3 {[%clk 0:00:00]}  Rb8 {[%clk 0:00:00]} 56. Rb3 {[%clk 0:00:00]}  Rb7 {[%clk 0:00:00]} 57. Ke4 {[%clk 0:00:00]}  Bd6 {[%clk 0:00:00]} 58. Rf1 {[%clk 0:00:00]}  Bf8 {[%clk 0:00:00]} 59. Kd5 {[%clk 0:00:00]}  e2 {[%clk 0:00:00]} 60. Re1 {[%clk 0:00:00]}  Rd7+ {[%clk 0:00:00]} 61. Kc6 {[%clk 0:00:00]}  Re7 {[%clk 0:00:00]} 62. b7 {[%clk 0:00:00]}  Re6+ {[%clk 0:00:00]} 63. Kd5 {[%clk 0:00:00]}  Rd6+ {[%clk 0:00:00]} 64. Ke4 {[%clk 0:00:00]}  Re6+ {[%clk 0:00:00]} 65. Kf3 {[%clk 0:00:00]} 1-0


[Site "https://www.chess.com"]

[Event "Titled Tuesday Blitz May 2 Late 2023"]
[White "Van Foreest, Machteld"]
[Black "Skvortsov, Andrei"]
[WhiteFideId "1051563"]
[BlackFideId "24108600"]
[WhiteElo "2018"]
[BlackElo "2259"]
[Result "0-1"]
[Round "01"]
[TimeControl "180+2"]
[Date "2023.05.02"]
[WhiteClock "0:00:00"]
[BlackClock "0:00:01"]

1. e4 {[%clk 0:00:01]}  d5 {[%clk 0:00:01]} 2. exd5 {[%clk 0:00:01]}  Qxd5 {[%clk 0:00:01]} 3. Nc3 {[%clk 0:00:01]}  Qe5+ {[%clk 0:00:01]} 4. Be2 {[%clk 0:00:01]}  Bg4 {[%clk 0:00:01]} 5. d4 {[%clk 0:00:01]}  Bxe2 {[%clk 0:00:01]} 6. Ngxe2 {[%clk 0:00:01]}  Qa5 {[%clk 0:00:01]} 7. Bf4 {[%clk 0:00:01]}  Nf6 {[%clk 0:00:01]} 8. O-O {[%clk 0:00:01]}  e6 {[%clk 0:00:01]} 9. a3 {[%clk 0:00:01]}  Nc6 {[%clk 0:00:01]} 10. b4 {[%clk 0:00:01]}  Qh5 {[%clk 0:00:01]} 11. Bxc7 {[%clk 0:00:01]}  Be7 {[%clk 0:00:01]} 12. Ng3 {[%clk 0:00:01]}  Qxd1 {[%clk 0:00:01]} 13. Raxd1 {[%clk 0:00:01]}  Rc8 {[%clk 0:00:01]} 14. Bf4 {[%clk 0:00:01]}  Nxd4 {[%clk 0:00:01]} 15. Nce4 {[%clk 0:00:00]}  Nxe4 {[%clk 0:00:01]} 16. Nxe4 {[%clk 0:00:00]}  Nxc2 {[%clk 0:00:01]} 17. Nd6+ {[%clk 0:00:00]}  Bxd6 {[%clk 0:00:01]} 18. Bxd6 {[%clk 0:00:00]}  Nxa3 {[%clk 0:00:01]} 19. Be5 {[%clk 0:00:00]}  f6 {[%clk 0:00:01]} 20. Bb2 {[%clk 0:00:00]}  Nb5 {[%clk 0:00:01]} 21. Rd2 {[%clk 0:00:00]}  Ke7 {[%clk 0:00:01]} 22. Rfd1 {[%clk 0:00:00]}  Rhd8 {[%clk 0:00:01]} 23. Kf1 {[%clk 0:00:00]}  Rxd2 {[%clk 0:00:01]} 24. Rxd2 {[%clk 0:00:00]}  Rc4 {[%clk 0:00:01]} 0-1


[Site "https://www.chess.com"]